[Event "Schack-SM 2023: Junior-SM"]
[Site "Helsingborg Arena, Mellersta Stenbocksgatan 14, Helsingborg, Sweden"]
[Date "2023.07.08"]
[Round "8.3"]
[White "Dingertz, Erik"]
[Black "Carlsson, Ludvig"]
[Result "1-0"]
[TimeControl "90 minutes for 40 moves + 30 minutes for the rest of the game + 30 seconds per move from move one."]
[BlackTitle "IM"]
[WhiteElo "2090"]
[BlackElo "2373"]

1. c4 {[%clk 01:30:58]} {[%emt 00:00:01]} c6 {[%clk 01:30:50]} {[%emt
00:00:10]} 2. g3 {[%clk 01:31:20]} {[%emt 00:00:09]} e5 {[%clk 01:28:57]}
{[%emt 00:02:22]} 3. d4 {[%clk 01:31:30]} {[%emt 00:00:19]} e4 {[%clk
01:29:13]} {[%emt 00:00:15]} 4. Nc3 {[%clk 01:31:44]} {[%emt 00:00:16]} d5
{[%clk 01:29:37]} {[%emt 00:00:06]} 5. cxd5 {[%clk 01:31:56]} {[%emt 00:00:18]}
cxd5 {[%clk 01:30:00]} {[%emt 00:00:07]} 6. Bg2 {[%clk 01:31:37]} {[%emt
00:00:49]} Nf6 {[%clk 01:28:37]} {[%emt 00:01:53]} 7. Bg5 {[%clk 01:31:55]}
{[%emt 00:00:12]} Nbd7 {[%clk 01:28:53]} {[%emt 00:00:15]} 8. Qb3 {[%clk
01:26:53]} {[%emt 00:05:32]} Be7 {[%clk 01:26:15]} {[%emt 00:03:08]} 9. Nh3
{[%clk 01:24:37]} {[%emt 00:02:46]} Nb6 {[%clk 01:22:37]} {[%emt 00:04:09]} 10.
Nf4 {[%clk 01:18:10]} {[%emt 00:06:56]} Be6 {[%clk 01:21:19]} {[%emt 00:01:47]}
11. O-O {[%clk 01:16:42]} {[%emt 00:01:58]} O-O {[%clk 01:20:30]} {[%emt
00:01:19]} 12. Rac1 {[%clk 01:14:22]} {[%emt 00:02:49]} h6 {[%clk 01:19:39]}
{[%emt 00:01:23]} 13. Nxe6 {[%clk 01:09:54]} {[%emt 00:04:57]} fxe6 {[%clk
01:20:03]} {[%emt 00:00:06]} 14. Bf4 {[%clk 01:10:06]} {[%emt 00:00:18]} g5
{[%clk 01:10:42]} {[%emt 00:09:50]} 15. Be5 {[%clk 01:08:44]} {[%emt 00:01:52]}
Rc8 {[%clk 01:09:16]} {[%emt 00:01:56]} 16. f3 {[%clk 00:46:05]} {[%emt
00:23:10]} Nc4 {[%clk 00:59:06]} {[%emt 00:10:40]} 17. Nxe4 {[%clk 00:44:15]}
{[%emt 00:02:20]} Nxe4 {[%clk 00:57:30]} {[%emt 00:02:06]} 18. fxe4 {[%clk
00:44:16]} {[%emt 00:00:29]} Rxf1+ {[%clk 00:57:52]} {[%emt 00:00:09]} 19. Rxf1
{[%clk 00:38:49]} {[%emt 00:05:57]} Nd2 {[%clk 00:52:27]} {[%emt 00:05:54]} 20.
Qd3 {[%clk 00:35:26]} {[%emt 00:03:53]} Nxf1 {[%clk 00:52:49]} {[%emt
00:00:08]} 21. exd5 {[%clk 00:35:05]} {[%emt 00:00:51]} Qe8 {[%clk 00:53:10]}
{[%emt 00:00:08]} 22. Bh3 {[%clk 00:34:05]} {[%emt 00:01:30]} g4 {[%clk
00:47:24]} {[%emt 00:06:16]} 23. Bxg4 {[%clk 00:34:04]} {[%emt 00:00:32]} Ne3
{[%clk 00:44:48]} {[%emt 00:03:05]} 24. Bxe6+ {[%clk 00:32:48]} {[%emt
00:01:46]} Kf8 {[%clk 00:45:11]} {[%emt 00:00:07]} 25. Qxe3 {[%clk 00:32:02]}
{[%emt 00:01:16]} Bg5 {[%clk 00:41:03]} {[%emt 00:04:38]} 26. Qa3+ {[%clk
00:32:26]} {[%emt 00:00:06]} 1-0

[Event "Schack-SM 2023: Sverigemastarklassen"]
[Site "Helsingborg Arena, Mellersta Stenbocksgatan 14, Helsingborg, Sweden"]
[Date "2023.07.08"]
[Round "8.2"]
[White "Hillarp Persson, Tiger"]
[Black "Johansson, Linus"]
[Result "1-0"]
[TimeControl "90 minutes for 40 moves + 30 minutes for the rest of the game + 30 seconds per move from move one."]
[WhiteTitle "GM"]
[BlackTitle "IM"]
[WhiteFideId "1700812"]
[BlackFideId "1711113"]
[WhiteElo "2493"]
[BlackElo "2466"]

1. g3 {[%clk 01:30:56]} {[%emt 00:00:03]} g6 {[%clk 01:30:42]} {[%emt
00:00:18]} 2. Bg2 {[%clk 01:31:13]} {[%emt 00:00:12]} Bg7 {[%clk 01:31:07]}
{[%emt 00:00:06]} 3. c4 {[%clk 01:31:05]} {[%emt 00:00:38]} e5 {[%clk
01:29:27]} {[%emt 00:02:09]} 4. Nc3 {[%clk 01:30:45]} {[%emt 00:00:50]} Nc6
{[%clk 01:29:30]} {[%emt 00:00:28]} 5. d3 {[%clk 01:29:46]} {[%emt 00:01:29]}
d6 {[%clk 01:29:37]} {[%emt 00:00:23]} 6. e3 {[%clk 01:27:34]} {[%emt
00:02:42]} Nf6 {[%clk 01:28:11]} {[%emt 00:01:57]} 7. Nge2 {[%clk 01:26:19]}
{[%emt 00:01:44]} O-O {[%clk 01:28:22]} {[%emt 00:00:19]} 8. O-O {[%clk
01:17:09]} {[%emt 00:09:41]} Be6 {[%clk 01:28:24]} {[%emt 00:00:27]} 9. Nd5
{[%clk 01:17:22]} {[%emt 00:00:17]} Qd7 {[%clk 01:26:42]} {[%emt 00:02:13]} 10.
b3 {[%clk 01:12:15]} {[%emt 00:05:37]} Bh3 {[%clk 01:24:23]} {[%emt 00:02:49]}
11. Nxf6+ {[%clk 01:11:24]} {[%emt 00:01:21]} Bxf6 {[%clk 01:24:46]} {[%emt
00:00:07]} 12. Bxh3 {[%clk 01:11:28]} {[%emt 00:00:25]} Qxh3 {[%clk 01:25:10]}
{[%emt 00:00:07]} 13. Bb2 {[%clk 01:11:51]} {[%emt 00:00:06]} Ne7 {[%clk
01:17:31]} {[%emt 00:08:09]} 14. Nc3 {[%clk 01:08:35]} {[%emt 00:03:46]} Bg7
{[%clk 01:10:30]} {[%emt 00:07:32]} 15. Qd2 {[%clk 00:59:28]} {[%emt 00:09:36]}
Rad8 {[%clk 01:01:44]} {[%emt 00:09:17]} 16. f4 {[%clk 00:28:58]} {[%emt
00:31:00]} c6 {[%clk 00:56:06]} {[%emt 00:06:08]} 17. Ne4 {[%clk 00:26:43]}
{[%emt 00:02:44]} f6 {[%clk 00:53:07]} {[%emt 00:03:29]} 18. Rf3 {[%clk
00:08:38]} {[%emt 00:18:35]} d5 {[%clk 00:42:33]} {[%emt 00:11:05]} 19. cxd5
{[%clk 00:08:20]} {[%emt 00:00:48]} cxd5 {[%clk 00:42:38]} {[%emt 00:00:24]} 20.
Nf2 {[%clk 00:08:42]} {[%emt 00:00:08]} Qe6 {[%clk 00:42:34]} {[%emt 00:00:33]}
21. fxe5 {[%clk 00:09:00]} {[%emt 00:00:12]} fxe5 {[%clk 00:42:37]} {[%emt
00:00:27]} 22. Rxf8+ {[%clk 00:09:22]} {[%emt 00:00:09]} Bxf8 {[%clk 00:40:18]}
{[%emt 00:02:49]} 23. Qe2 {[%clk 00:06:37]} {[%emt 00:03:14]} Nc6 {[%clk
00:39:13]} {[%emt 00:01:35]} 24. Rf1 {[%clk 00:06:43]} {[%emt 00:00:24]} Bd6
{[%clk 00:30:45]} {[%emt 00:08:59]} 25. Kg2 {[%clk 00:06:54]} {[%emt 00:00:18]}
Rf8 {[%clk 00:30:22]} {[%emt 00:00:53]} 26. e4 {[%clk 00:06:20]} {[%emt
00:01:04]} d4 {[%clk 00:29:41]} {[%emt 00:01:11]} 27. Bc1 {[%clk 00:05:58]}
{[%emt 00:00:52]} Rf7 {[%clk 00:26:26]} {[%emt 00:03:45]} 28. h4 {[%clk
00:06:13]} {[%emt 00:00:15]} Bf8 {[%clk 00:21:51]} {[%emt 00:05:05]} 29. Bd2
{[%clk 00:06:32]} {[%emt 00:00:11]} a6 {[%clk 00:20:55]} {[%emt 00:01:26]} 30.
Rc1 {[%clk 00:06:43]} {[%emt 00:00:18]} Ba3 {[%clk 00:17:31]} {[%emt 00:03:55]}
31. Rc4 {[%clk 00:06:54]} {[%emt 00:00:18]} Bf8 {[%clk 00:17:16]} {[%emt
00:00:45]} 32. Ng4 {[%clk 00:04:47]} {[%emt 00:02:36]} Bg7 {[%clk 00:10:48]}
{[%emt 00:06:58]} 33. Rc5 {[%clk 00:03:33]} {[%emt 00:01:45]} Kf8 {[%clk
00:09:30]} {[%emt 00:01:49]} 34. Nh2 {[%clk 00:01:59]} {[%emt 00:02:03]} Ke8
{[%clk 00:07:58]} {[%emt 00:02:01]} 35. Nf3 {[%clk 00:01:57]} {[%emt 00:00:32]}
h6 {[%clk 00:08:01]} {[%emt 00:00:28]} 36. Rc2 {[%clk 00:02:07]} {[%emt
00:00:18]} Kd8 {[%clk 00:06:35]} {[%emt 00:01:57]} 37. Rc1 {[%clk 00:01:03]}
{[%emt 00:01:35]} Kc8 {[%clk 00:06:01]} {[%emt 00:01:03]} 38. Rh1 {[%clk
00:01:28]} {[%emt 00:00:05]} Rc7 {[%clk 00:04:47]} {[%emt 00:01:43]} 39. h5
{[%clk 00:01:32]} {[%emt 00:00:26]} gxh5 {[%clk 00:02:23]} {[%emt 00:02:55]} 40.
Rxh5 {[%clk 00:01:29]} {[%emt 00:00:33]} Nd8 {[%clk 00:01:55]} {[%emt
00:00:57]} 41. Rh1 {[%clk 00:00:38]} {[%emt 00:01:20]} Rc2 {[%clk 00:22:24]}
{[%emt 00:10:02]} 42. Rc1 {[%clk 00:30:26]} {[%emt 00:00:42]} Qc6 {[%clk
00:22:38]} {[%emt 00:00:17]} 43. Qd1 {[%clk 00:29:06]} {[%emt 00:01:49]} Rxc1
{[%clk 00:23:02]} {[%emt 00:00:07]} 44. Qxc1 {[%clk 00:29:06]} {[%emt
00:00:29]} Kd7 {[%clk 00:07:34]} {[%emt 00:15:58]} 45. Qxc6+ {[%clk 00:20:51]}
{[%emt 00:08:46]} Kxc6 {[%clk 00:07:52]} {[%emt 00:00:12]} 46. Kh3 {[%clk
00:19:57]} {[%emt 00:01:24]} Ne6 {[%clk 00:08:14]} {[%emt 00:00:09]} 47. Kg4
{[%clk 00:20:11]} {[%emt 00:00:15]} Nc5 {[%clk 00:08:04]} {[%emt 00:00:40]} 48.
Ne1 {[%clk 00:20:34]} {[%emt 00:00:07]} Kb5 {[%clk 00:08:19]} {[%emt 00:00:17]}
49. Kf5 {[%clk 00:19:51]} {[%emt 00:01:13]} a5 {[%clk 00:08:24]} {[%emt
00:00:25]} 50. g4 {[%clk 00:17:51]} {[%emt 00:02:29]} a4 {[%clk 00:08:23]}
{[%emt 00:00:31]} 51. b4 {[%clk 00:16:34]} {[%emt 00:01:47]} Nb3 {[%clk
00:08:47]} {[%emt 00:00:06]} 52. axb3 {[%clk 00:16:40]} {[%emt 00:00:24]} axb3
{[%clk 00:07:39]} {[%emt 00:01:39]} 53. Bc1 {[%clk 00:17:04]} {[%emt 00:00:05]}
b2 {[%clk 00:03:15]} {[%emt 00:04:55]} 54. Bxb2 {[%clk 00:17:23]} {[%emt
00:00:11]} Kxb4 {[%clk 00:03:41]} {[%emt 00:00:04]} 55. Nf3 {[%clk 00:17:23]}
{[%emt 00:00:29]} Kb3 {[%clk 00:04:05]} {[%emt 00:00:07]} 56. Bc1 {[%clk
00:16:19]} {[%emt 00:01:33]} Kc2 {[%clk 00:04:30]} {[%emt 00:00:05]} 57. Ba3
{[%clk 00:15:17]} {[%emt 00:01:32]} Kxd3 {[%clk 00:04:53]} {[%emt 00:00:08]} 58.
Nxe5+ {[%clk 00:15:40]} {[%emt 00:00:07]} Bxe5 {[%clk 00:02:47]} {[%emt
00:02:36]} 59. Kxe5 {[%clk 00:16:03]} {[%emt 00:00:07]} Kc4 {[%clk 00:03:09]}
{[%emt 00:00:08]} 60. Kf4 {[%clk 00:14:14]} {[%emt 00:02:19]} b5 {[%clk
00:01:56]} {[%emt 00:01:43]} 61. Bb2 {[%clk 00:07:12]} {[%emt 00:07:30]} b4
{[%clk 00:02:16]} {[%emt 00:00:11]} 62. e5 {[%clk 00:06:07]} {[%emt 00:01:35]}
Kd5 {[%clk 00:02:02]} {[%emt 00:00:44]} 63. Ba1 {[%clk 00:06:05]} {[%emt
00:00:31]} 1-0

[ePGN "0.1;DGT LiveChess/2.2.5"]

[Event "Schack-SM 2023: Mastarklassen-elit"]
[Site "Helsingborg Arena, Mellersta Stenbocksgatan 14, Helsingborg, Sweden"]
[Date "2023.07.08"]
[Round "8.1"]
[White "Crevatin, Leo"]
[Black "Thorn, Eric"]
[Result "1/2-1/2"]
[TimeControl "90 minutes for 40 moves + 30 minutes for the rest of games + 30 seconds per move from move one."]
[WhiteTitle "FM"]
[BlackTitle "FM"]
[WhiteElo "2265"]
[BlackElo "2379"]

1. d4 {[%clk 01:30:53]} d5 {[%clk 01:30:58]} {[%emt 00:00:08]} 2. Nf3 {[%clk
01:30:22]} {[%emt 00:01:01]} e6 {[%clk 01:30:51]} {[%emt 00:00:36]} 3. c4
{[%clk 01:29:55]} {[%emt 00:00:58]} a6 {[%clk 01:31:15]} {[%emt 00:00:06]} 4.
Bg5 {[%clk 01:24:58]} {[%emt 00:05:26]} Be7 {[%clk 01:31:26]} {[%emt 00:00:20]}
5. Bxe7 {[%clk 01:25:22]} {[%emt 00:00:06]} Nxe7 {[%clk 01:31:22]} {[%emt
00:00:34]} 6. Nbd2 {[%clk 01:24:10]} {[%emt 00:01:42]} Nd7 {[%clk 01:26:09]}
{[%emt 00:05:43]} 7. g3 {[%clk 01:21:10]} {[%emt 00:03:30]} dxc4 {[%clk
01:24:41]} {[%emt 00:01:58]} 8. a4 {[%clk 01:14:20]} {[%emt 00:07:20]} b5
{[%clk 01:15:28]} {[%emt 00:09:43]} 9. axb5 {[%clk 01:13:32]} {[%emt 00:01:18]}
Nb6 {[%clk 01:15:54]} {[%emt 00:00:04]} 10. bxa6 {[%clk 01:12:31]} {[%emt
00:01:32]} O-O {[%clk 01:14:14]} {[%emt 00:02:10]} 11. Bg2 {[%clk 01:10:42]}
{[%emt 00:02:18]} Rxa6 {[%clk 01:13:34]} {[%emt 00:01:10]} 12. Rxa6 {[%clk
01:10:26]} {[%emt 00:00:45]} Bxa6 {[%clk 01:14:00]} {[%emt 00:00:05]} 13. Ne4
{[%clk 01:06:35]} {[%emt 00:04:21]} Bb7 {[%clk 00:58:13]} {[%emt 00:16:17]} 14.
Nc5 {[%clk 01:04:08]} {[%emt 00:02:57]} Bxf3 {[%clk 00:57:47]} {[%emt
00:00:56]} 15. Bxf3 {[%clk 01:02:01]} {[%emt 00:02:36]} Nf5 {[%clk 00:56:11]}
{[%emt 00:02:06]} 16. e3 {[%clk 01:01:47]} {[%emt 00:00:44]} e5 {[%clk
00:53:31]} {[%emt 00:03:10]} 17. dxe5 {[%clk 00:52:39]} {[%emt 00:09:39]} Qe7
{[%clk 00:53:10]} {[%emt 00:00:50]} 18. Ne4 {[%clk 00:51:26]} {[%emt 00:01:44]}
Qxe5 {[%clk 00:44:27]} {[%emt 00:09:13]} 19. Nc3 {[%clk 00:48:34]} {[%emt
00:03:21]} g6 {[%clk 00:37:16]} {[%emt 00:07:41]} 20. O-O {[%clk 00:46:48]}
{[%emt 00:02:14]} h5 {[%clk 00:36:28]} {[%emt 00:01:20]} 21. Bg2 {[%clk
00:44:16]} {[%emt 00:03:01]} h4 {[%clk 00:30:29]} {[%emt 00:06:31]} 22. Qg4
{[%clk 00:36:28]} {[%emt 00:08:17]} hxg3 {[%clk 00:30:10]} {[%emt 00:00:50]} 23.
hxg3 {[%clk 00:36:43]} {[%emt 00:00:14]} Kg7 {[%clk 00:20:50]} {[%emt
00:09:51]} 24. Rd1 {[%clk 00:33:37]} {[%emt 00:03:35]} Rb8 {[%clk 00:18:55]}
{[%emt 00:02:25]} 25. Qg5 {[%clk 00:25:01]} {[%emt 00:09:06]} Qf6 {[%clk
00:13:35]} {[%emt 00:05:50]} 26. Qxf6+ {[%clk 00:22:09]} {[%emt 00:03:22]} Kxf6
{[%clk 00:14:00]} {[%emt 00:00:05]} 27. e4 {[%clk 00:22:02]} {[%emt 00:00:37]}
Ng7 {[%clk 00:10:31]} {[%emt 00:03:58]} 28. Rd2 {[%clk 00:15:31]} {[%emt
00:07:02]} Ne6 {[%clk 00:09:55]} {[%emt 00:01:06]} 29. Nd5+ {[%clk 00:11:15]}
{[%emt 00:04:47]} Nxd5 {[%clk 00:10:16]} {[%emt 00:00:09]} 30. exd5 {[%clk
00:11:23]} {[%emt 00:00:21]} Nc5 {[%clk 00:09:49]} {[%emt 00:00:57]} 31. Rd4
{[%clk 00:09:35]} {[%emt 00:02:16]} Rxb2 {[%clk 00:06:49]} {[%emt 00:03:33]} 32.
Rxc4 {[%clk 00:10:04]} {[%emt 00:00:01]} Rb5 {[%clk 00:07:11]} {[%emt
00:00:07]} 33. Bf1 {[%clk 00:08:51]} {[%emt 00:01:43]} Ra5 {[%clk 00:07:37]}
{[%emt 00:00:04]} 34. Rf4+ {[%clk 00:06:57]} {[%emt 00:02:24]} Ke7 {[%clk
00:07:46]} {[%emt 00:00:21]} 35. Rc4 {[%clk 00:05:20]} {[%emt 00:02:07]} Kd6
{[%clk 00:07:57]} {[%emt 00:00:19]} 36. Bg2 {[%clk 00:04:23]} {[%emt 00:01:26]}
Ra1+ {[%clk 00:06:36]} {[%emt 00:01:52]} 37. Kh2 {[%clk 00:04:38]} {[%emt
00:00:14]} Ra2 {[%clk 00:07:00]} {[%emt 00:00:07]} 38. Kg1 {[%clk 00:04:16]}
{[%emt 00:00:52]} Ra1+ {[%clk 00:03:58]} {[%emt 00:03:33]} 39. Kh2 {[%clk
00:04:40]} {[%emt 00:00:06]} Ra6 {[%clk 00:04:21]} {[%emt 00:00:06]} 40. Rf4
{[%clk 00:02:23]} {[%emt 00:02:46]} f5 {[%clk 00:03:26]} {[%emt 00:01:27]} 41.
Rd4 {[%clk 00:23:22]} {[%emt 00:09:30]} Ra4 {[%clk 00:28:25]} {[%emt 00:05:31]}
42. Rd2 {[%clk 00:22:17]} {[%emt 00:01:35]} Rc4 {[%clk 00:25:12]} {[%emt
00:03:42]} 43. Ra2 {[%clk 00:20:48]} {[%emt 00:02:00]} Ra4 {[%clk 00:24:52]}
{[%emt 00:00:50]} 44. Re2 {[%clk 00:18:14]} {[%emt 00:03:04]} Ne4 {[%clk
00:14:22]} {[%emt 00:11:00]} 45. Rc2 {[%clk 00:17:13]} {[%emt 00:01:31]} Ra7
{[%clk 00:14:04]} {[%emt 00:00:48]} 46. Rc6+ {[%clk 00:16:07]} {[%emt
00:01:37]} Kxd5 {[%clk 00:14:29]} {[%emt 00:00:05]} 47. Rxg6 {[%clk 00:16:34]}
{[%emt 00:00:02]} Kd4 {[%clk 00:08:33]} {[%emt 00:06:26]} 48. Bxe4 {[%clk
00:14:34]} {[%emt 00:02:31]} fxe4 {[%clk 00:07:36]} {[%emt 00:01:26]} 49. Rg7
{[%clk 00:15:00]} {[%emt 00:00:04]} Ra2 {[%clk 00:07:33]} {[%emt 00:00:33]} 50.
Kg1 {[%clk 00:13:14]} {[%emt 00:02:16]} c5 {[%clk 00:07:57]} {[%emt 00:00:06]}
51. Kf1 {[%clk 00:11:19]} {[%emt 00:02:26]} c4 {[%clk 00:06:28]} {[%emt
00:01:58]} 52. Rd7+ {[%clk 00:11:34]} {[%emt 00:00:15]} Kc5 {[%clk 00:05:37]}
{[%emt 00:01:21]} 53. g4 {[%clk 00:09:53]} {[%emt 00:02:11]} c3 {[%clk
00:05:53]} {[%emt 00:00:14]} 54. Rc7+ {[%clk 00:10:09]} {[%emt 00:00:14]} Kb4
{[%clk 00:05:47]} {[%emt 00:00:36]} 55. Ke1 {[%clk 00:07:08]} {[%emt 00:03:31]}
Kb3 {[%clk 00:04:37]} {[%emt 00:01:40]} 56. Rb7+ {[%clk 00:07:17]} {[%emt
00:00:22]} Kc2 {[%clk 00:04:39]} {[%emt 00:00:27]} 57. Ke2 {[%clk 00:04:12]}
{[%emt 00:03:36]} Kc1+ {[%clk 00:02:06]} {[%emt 00:03:03]} 58. Ke3 {[%clk
00:04:33]} {[%emt 00:00:06]} c2 {[%clk 00:02:15]} {[%emt 00:00:23]} 59. Kxe4
{[%clk 00:02:56]} {[%emt 00:02:07]} Ra4+ {[%clk 00:02:37]} {[%emt 00:00:08]} 60.
Kf5 {[%clk 00:01:25]} {[%emt 00:02:01]} Rc4 {[%clk 00:02:47]} {[%emt 00:00:19]}
61. Rh7 {[%clk 00:01:05]} {[%emt 00:00:51]} Kd2 {[%clk 00:01:29]} {[%emt
00:01:49]} 62. Rh1 {[%clk 00:01:26]} {[%emt 00:00:08]} c1=Q {[%clk 00:00:46]}
{[%emt 00:01:13]} 63. Rxc1 {[%clk 00:01:55]} {[%emt 00:00:02]} Rxc1 {[%clk
00:01:10]} {[%emt 00:00:06]} 64. g5 {[%clk 00:02:21]} {[%emt 00:00:03]} Rg1
{[%clk 00:01:22]} {[%emt 00:00:17]} 65. g6 {[%clk 00:02:37]} {[%emt 00:00:15]}
Kd3 {[%clk 00:01:20]} {[%emt 00:00:32]} 66. Kf6 {[%clk 00:03:04]} {[%emt
00:00:04]} Ke4 {[%clk 00:01:13]} {[%emt 00:00:36]} 67. g7 {[%clk 00:03:25]}
{[%emt 00:00:08]} Kf3 {[%clk 00:00:59]} {[%emt 00:00:44]} 68. Kf7 {[%clk
00:03:52]} {[%emt 00:00:04]} Kxf2 {[%clk 00:01:25]} {[%emt 00:00:04]} 69. g8=Q
{[%clk 00:04:18]} {[%emt 00:00:04]} Rxg8 {[%clk 00:01:49]} {[%emt 00:00:07]} 70.
Kxg8 {[%clk 00:04:46]} {[%emt 00:00:02]} 1/2-1/2

[Event "Schack-SM 2023: Junior-SM"]
[Site "Helsingborg Arena, Mellersta Stenbocksgatan 14, Helsingborg, Sweden"]
[Date "2023.07.08"]
[Round "8.4"]
[White "Wernberg, Hugo"]
[Black "Persson, Sebastian 2007"]
[Result "1-0"]
[TimeControl "90 minutes for 40 moves + 30 minutes for the rest of the game + 30 seconds per move from move one."]
[WhiteTitle "FM"]
[WhiteElo "2217"]
[BlackElo "1947"]

1. d4 {[%clk 01:30:57]} {[%emt 00:00:03]} d5 {[%clk 01:30:52]} {[%emt
00:00:08]} 2. c4 {[%clk 01:31:22]} {[%emt 00:00:05]} c6 {[%clk 01:31:16]}
{[%emt 00:00:06]} 3. Nf3 {[%clk 01:31:48]} {[%emt 00:00:04]} Nf6 {[%clk
01:31:39]} {[%emt 00:00:07]} 4. e3 {[%clk 01:32:15]} {[%emt 00:00:04]} e6
{[%clk 01:31:56]} {[%emt 00:00:12]} 5. b3 {[%clk 01:32:21]} {[%emt 00:00:25]}
Nbd7 {[%clk 01:31:58]} {[%emt 00:00:27]} 6. Bd3 {[%clk 01:32:28]} {[%emt
00:00:23]} Bd6 {[%clk 01:31:16]} {[%emt 00:01:12]} 7. Bb2 {[%clk 01:32:12]}
{[%emt 00:00:45]} O-O {[%clk 01:31:19]} {[%emt 00:00:28]} 8. Nbd2 {[%clk
01:30:15]} {[%emt 00:02:27]} Qc7 {[%clk 01:20:26]} {[%emt 00:11:23]} 9. c5
{[%clk 01:04:05]} {[%emt 00:26:41]} Be7 {[%clk 01:20:20]} {[%emt 00:00:35]} 10.
b4 {[%clk 00:55:10]} {[%emt 00:09:25]} b6 {[%clk 01:09:04]} {[%emt 00:11:46]}
11. a3 {[%clk 00:51:57]} {[%emt 00:03:43]} Bb7 {[%clk 01:05:41]} {[%emt
00:03:53]} 12. O-O {[%clk 00:45:58]} {[%emt 00:06:30]} Rfe8 {[%clk 00:57:26]}
{[%emt 00:08:45]} 13. Re1 {[%clk 00:37:56]} {[%emt 00:08:31]} Nf8 {[%clk
00:54:38]} {[%emt 00:03:17]} 14. Ne5 {[%clk 00:36:20]} {[%emt 00:02:06]} N6d7
{[%clk 00:53:01]} {[%emt 00:02:06]} 15. f4 {[%clk 00:33:09]} {[%emt 00:03:41]}
f6 {[%clk 00:49:57]} {[%emt 00:03:34]} 16. Nxd7 {[%clk 00:31:22]} {[%emt
00:02:18]} Qxd7 {[%clk 00:49:10]} {[%emt 00:01:17]} 17. e4 {[%clk 00:26:14]}
{[%emt 00:05:38]} bxc5 {[%clk 00:42:20]} {[%emt 00:07:21]} 18. bxc5 {[%clk
00:22:11]} {[%emt 00:04:34]} Bd8 {[%clk 00:27:28]} {[%emt 00:15:21]} 19. Bc3
{[%clk 00:16:57]} {[%emt 00:05:44]} Bc7 {[%clk 00:25:17]} {[%emt 00:02:41]} 20.
e5 {[%clk 00:16:28]} {[%emt 00:00:59]} f5 {[%clk 00:24:49]} {[%emt 00:00:58]}
21. Rb1 {[%clk 00:15:25]} {[%emt 00:01:32]} Bc8 {[%clk 00:23:14]} {[%emt
00:02:05]} 22. Qa4 {[%clk 00:14:56]} {[%emt 00:00:59]} h6 {[%clk 00:20:22]}
{[%emt 00:03:23]} 23. Nf3 {[%clk 00:14:10]} {[%emt 00:01:16]} Bd8 {[%clk
00:19:39]} {[%emt 00:01:13]} 24. Bd2 {[%clk 00:13:33]} {[%emt 00:01:06]} Nh7
{[%clk 00:19:22]} {[%emt 00:00:47]} 25. h4 {[%clk 00:13:13]} {[%emt 00:00:50]}
g6 {[%clk 00:16:28]} {[%emt 00:03:24]} 26. Rb2 {[%clk 00:12:41]} {[%emt
00:01:02]} Re7 {[%clk 00:15:23]} {[%emt 00:01:35]} 27. Reb1 {[%clk 00:12:22]}
{[%emt 00:00:48]} Rg7 {[%clk 00:14:51]} {[%emt 00:01:01]} 28. Ba5 {[%clk
00:09:18]} {[%emt 00:03:34]} Bc7 {[%clk 00:07:27]} {[%emt 00:07:54]} 29. Bb6
{[%clk 00:07:48]} {[%emt 00:02:01]} g5 {[%clk 00:04:13]} {[%emt 00:03:43]} 30.
hxg5 {[%clk 00:06:35]} {[%emt 00:01:43]} hxg5 {[%clk 00:04:36]} {[%emt
00:00:07]} 31. fxg5 {[%clk 00:06:38]} {[%emt 00:00:26]} Nxg5 {[%clk 00:04:56]}
{[%emt 00:00:10]} 32. Nxg5 {[%clk 00:07:04]} {[%emt 00:00:04]} Rxg5 {[%clk
00:05:12]} {[%emt 00:00:14]} 33. Qa5 {[%clk 00:06:50]} {[%emt 00:00:44]} Rg7
{[%clk 00:03:33]} {[%emt 00:02:08]} 34. Bxc7 {[%clk 00:05:47]} {[%emt
00:01:34]} Qxc7 {[%clk 00:03:55]} {[%emt 00:00:09]} 35. Qxc7 {[%clk 00:06:07]}
{[%emt 00:00:10]} Rxc7 {[%clk 00:04:19]} {[%emt 00:00:06]} 36. Kf2 {[%clk
00:05:54]} {[%emt 00:00:43]} Kf7 {[%clk 00:01:15]} {[%emt 00:03:34]} 37. Kf3
{[%clk 00:05:55]} {[%emt 00:00:29]} Kg7 {[%clk 00:00:39]} {[%emt 00:01:06]} 38.
Kf4 {[%clk 00:05:55]} {[%emt 00:00:29]} Bd7 {[%clk 00:00:54]} {[%emt 00:00:16]}
39. Rb7 {[%clk 00:04:29]} {[%emt 00:01:56]} Rac8 {[%clk 00:01:14]} {[%emt
00:00:09]} 40. Ba6 {[%clk 00:04:22]} {[%emt 00:00:38]} Kf7 {[%clk 00:00:56]}
{[%emt 00:00:49]} 41. a4 {[%clk 00:16:16]} {[%emt 00:18:36]} Ke7 {[%clk
00:21:18]} {[%emt 00:10:07]} 42. Rxc7 {[%clk 00:07:48]} {[%emt 00:08:58]} Rxc7
{[%clk 00:21:38]} {[%emt 00:00:10]} 43. Rh1 {[%clk 00:08:13]} {[%emt 00:00:05]}
Be8 {[%clk 00:10:33]} {[%emt 00:11:35]} 44. Rh7+ {[%clk 00:06:29]} {[%emt
00:02:15]} Bf7 {[%clk 00:10:54]} {[%emt 00:00:08]} 45. Be2 {[%clk 00:05:44]}
{[%emt 00:01:14]} Kf8 {[%clk 00:10:08]} {[%emt 00:01:16]} 46. Bh5 {[%clk
00:05:50]} {[%emt 00:00:25]} Kg8 {[%clk 00:09:36]} {[%emt 00:01:02]} 47. Rxf7
{[%clk 00:06:02]} {[%emt 00:00:17]} Rxf7 {[%clk 00:09:58]} {[%emt 00:00:08]} 48.
Bxf7+ {[%clk 00:06:27]} {[%emt 00:00:05]} Kxf7 {[%clk 00:10:22]} {[%emt
00:00:06]} 49. Kg5 {[%clk 00:06:51]} {[%emt 00:00:06]} Kg7 {[%clk 00:10:27]}
{[%emt 00:00:25]} 50. a5 {[%clk 00:07:12]} {[%emt 00:00:09]} f4 {[%clk
00:09:49]} {[%emt 00:01:07]} 51. Kxf4 {[%clk 00:07:21]} {[%emt 00:00:21]} Kg6
{[%clk 00:10:08]} {[%emt 00:00:11]} 52. Kg4 {[%clk 00:07:46]} {[%emt 00:00:06]}
Kh6 {[%clk 00:10:30]} {[%emt 00:00:08]} 53. Kh4 {[%clk 00:08:08]} {[%emt
00:00:08]} Kg6 {[%clk 00:09:50]} {[%emt 00:01:10]} 54. g4 {[%clk 00:08:26]}
{[%emt 00:00:12]} a6 {[%clk 00:10:10]} {[%emt 00:00:10]} 55. g5 {[%clk
00:08:47]} {[%emt 00:00:09]} 1-0